[Event "Titled Tuesday Blitz January 10 Late 2023"]
[White "Andreassen, Lars"]
[Black "Skvortsov, Andrei"]
[WhiteFideId "1504878"]
[BlackFideId "24108600"]
[WhiteElo "2168"]
[BlackElo "2313"]
[Result "0-1"]
[Round "02"]
[TimeControl "180+2"]
[Date "2023.01.10"]
[WhiteClock "0:00:05"]
[BlackClock "0:00:34"]

1. d4 {[%clk 0:00:00]}  Nf6 {[%clk 0:00:00]} 2. Nf3 {[%clk 0:02:09]}  e6 {[%clk 0:02:55]} 3. Bg5 {[%clk 0:02:10]}  d5 {[%clk 0:02:55]} 4. e3 {[%clk 0:02:10]}  Be7 {[%clk 0:02:52]} 5. c4 {[%clk 0:02:10]}  O-O {[%clk 0:02:50]} 6. Nc3 {[%clk 0:02:10]}  h6 {[%clk 0:02:50]} 7. Bh4 {[%clk 0:02:11]}  dxc4 {[%clk 0:02:50]} 8. Bxc4 {[%clk 0:02:11]}  c5 {[%clk 0:02:50]} 9. O-O {[%clk 0:02:10]}  cxd4 {[%clk 0:02:50]} 10. Nxd4 {[%clk 0:02:10]}  a6 {[%clk 0:02:46]} 11. a4 {[%clk 0:02:10]}  Qc7 {[%clk 0:02:42]} 12. Bb3 {[%clk 0:02:09]}  Bd7 {[%clk 0:02:41]} 13. Rc1 {[%clk 0:02:07]}  Nc6 {[%clk 0:02:41]} 14. Bg3 {[%clk 0:02:05]}  Qb6 {[%clk 0:02:34]} 15. Bh4 {[%clk 0:02:04]}  Rfd8 {[%clk 0:02:29]} 16. Qc2 {[%clk 0:01:14]}  Nxd4 {[%clk 0:02:18]} 17. exd4 {[%clk 0:00:58]}  Qxd4 {[%clk 0:02:16]} 18. Bg3 {[%clk 0:00:59]}  Bc6 {[%clk 0:02:15]} 19. Rfd1 {[%clk 0:00:58]}  Qb4 {[%clk 0:02:14]} 20. Bc7 {[%clk 0:00:51]}  Rdc8 {[%clk 0:02:10]} 21. Be5 {[%clk 0:00:46]}  Qg4 {[%clk 0:02:04]} 22. Bg3 {[%clk 0:00:42]}  Rd8 {[%clk 0:02:03]} 23. h3 {[%clk 0:00:41]}  Qb4 {[%clk 0:01:41]} 24. Re1 {[%clk 0:00:37]}  Qa5 {[%clk 0:01:40]} 25. Re5 {[%clk 0:00:32]}  Qb6 {[%clk 0:01:28]} 26. a5 {[%clk 0:00:29]}  Qa7 {[%clk 0:01:26]} 27. Kh2 {[%clk 0:00:28]}  Bd6 {[%clk 0:01:26]} 28. Re3 {[%clk 0:00:26]}  Bc5 {[%clk 0:01:24]} 29. Re5 {[%clk 0:00:25]}  Bd4 {[%clk 0:01:22]} 30. Re2 {[%clk 0:00:22]}  Rac8 {[%clk 0:01:20]} 31. Qb1 {[%clk 0:00:19]}  Be8 {[%clk 0:01:18]} 32. Rd1 {[%clk 0:00:15]}  b5 {[%clk 0:01:17]} 33. axb6 {[%clk 0:00:15]}  Bxb6 {[%clk 0:01:09]} 34. Rxd8 {[%clk 0:00:14]}  Rxd8 {[%clk 0:01:09]} 35. Ne4 {[%clk 0:00:12]}  Nxe4 {[%clk 0:01:08]} 36. Qxe4 {[%clk 0:00:11]}  Qa8 {[%clk 0:01:05]} 37. Qg4 {[%clk 0:00:12]}  Bd4 {[%clk 0:01:03]} 38. Rd2 {[%clk 0:00:11]}  Bf6 {[%clk 0:00:50]} 39. Re2 {[%clk 0:00:08]}  Qb7 {[%clk 0:00:48]} 40. h4 {[%clk 0:00:08]}  Qxb3 {[%clk 0:00:46]} 41. h5 {[%clk 0:00:07]}  Bb5 {[%clk 0:00:44]} 42. Re3 {[%clk 0:00:05]}  Qxb2 {[%clk 0:00:38]} 43. Rf3 {[%clk 0:00:04]}  Be2 {[%clk 0:00:38]} 44. Bf4 {[%clk 0:00:04]}  Bxf3 {[%clk 0:00:34]} 45. gxf3 {[%clk 0:00:05]}  Kh8 {[%clk 0:00:34]} 0-1


[Site "https://www.chess.com"]

[Event "Titled Tuesday Blitz January 10 Late 2023"]
[White "Dimitrov, Atanas"]
[Black "Clawitter, Craig"]
[WhiteFideId "2901315"]
[BlackFideId "2023105"]
[WhiteElo "2269"]
[BlackElo "2050"]
[Result "1-0"]
[Round "02"]
[TimeControl "180+2"]
[Date "2023.01.10"]
[WhiteClock "0:00:08"]
[BlackClock "0:00:03"]

1. Nf3 {[%clk 0:00:00]}  Nf6 {[%clk 0:00:00]} 2. g3 {[%clk 0:03:00]}  d5 {[%clk 0:02:59]} 3. Bg2 {[%clk 0:03:00]}  e6 {[%clk 0:02:59]} 4. c4 {[%clk 0:03:01]}  Be7 {[%clk 0:02:59]} 5. O-O {[%clk 0:03:01]}  O-O {[%clk 0:02:59]} 6. cxd5 {[%clk 0:03:01]}  exd5 {[%clk 0:02:59]} 7. d4 {[%clk 0:02:57]}  c6 {[%clk 0:02:59]} 8. Nc3 {[%clk 0:02:58]}  h6 {[%clk 0:03:00]} 9. Ne5 {[%clk 0:02:58]}  Bf5 {[%clk 0:02:54]} 10. Bf4 {[%clk 0:02:51]}  Nbd7 {[%clk 0:02:53]} 11. a3 {[%clk 0:02:50]}  Nh5 {[%clk 0:02:45]} 12. Nxd7 {[%clk 0:02:46]}  Qxd7 {[%clk 0:02:33]} 13. Bd2 {[%clk 0:02:44]}  Bh3 {[%clk 0:02:31]} 14. e4 {[%clk 0:02:43]}  Nf6 {[%clk 0:02:26]} 15. e5 {[%clk 0:02:10]}  Ne8 {[%clk 0:02:16]} 16. b4 {[%clk 0:02:08]}  a6 {[%clk 0:02:11]} 17. Na4 {[%clk 0:02:01]}  Bxg2 {[%clk 0:02:05]} 18. Kxg2 {[%clk 0:01:58]}  Nc7 {[%clk 0:01:54]} 19. Nb6 {[%clk 0:01:59]}  Qf5 {[%clk 0:01:53]} 20. Nxa8 {[%clk 0:01:58]}  Nxa8 {[%clk 0:01:47]} 21. Be3 {[%clk 0:01:58]}  Nb6 {[%clk 0:01:45]} 22. Qb1 {[%clk 0:01:54]}  Qe6 {[%clk 0:01:45]} 23. Qd3 {[%clk 0:01:47]}  Nc4 {[%clk 0:01:30]} 24. Rac1 {[%clk 0:01:44]}  b5 {[%clk 0:01:24]} 25. f4 {[%clk 0:01:41]}  a5 {[%clk 0:01:07]} 26. f5 {[%clk 0:01:37]}  Qd7 {[%clk 0:01:02]} 27. Rb1 {[%clk 0:01:36]}  Ra8 {[%clk 0:00:56]} 28. Rf2 {[%clk 0:01:32]}  axb4 {[%clk 0:00:32]} 29. axb4 {[%clk 0:01:21]}  Ra3 {[%clk 0:00:31]} 30. Rb3 {[%clk 0:01:21]}  Bxb4 {[%clk 0:00:24]} 31. Rxa3 {[%clk 0:01:22]}  Bxa3 {[%clk 0:00:20]} 32. f6 {[%clk 0:01:18]}  Bf8 {[%clk 0:00:20]} 33. Bc1 {[%clk 0:01:13]}  g6 {[%clk 0:00:16]} 34. Re2 {[%clk 0:01:09]}  Qe6 {[%clk 0:00:13]} 35. h3 {[%clk 0:01:04]}  b4 {[%clk 0:00:13]} 36. g4 {[%clk 0:00:57]}  Kh7 {[%clk 0:00:13]} 37. Qg3 {[%clk 0:00:56]}  Qc8 {[%clk 0:00:09]} 38. h4 {[%clk 0:00:48]}  Qa6 {[%clk 0:00:07]} 39. Qd3 {[%clk 0:00:42]}  Qa1 {[%clk 0:00:06]} 40. Rc2 {[%clk 0:00:38]}  b3 {[%clk 0:00:05]} 41. Rc3 {[%clk 0:00:32]}  b2 {[%clk 0:00:03]} 42. Bxb2 {[%clk 0:00:08]}  Qxb2+ {[%clk 0:00:03]} 43. Kh3 {[%clk 0:00:07]}  Qf2 {[%clk 0:00:03]} 44. h5 {[%clk 0:00:08]} 1-0


[Site "https://www.chess.com"]

[Event "Titled Tuesday Blitz January 10 Late 2023"]
[White "Barp, Alberto"]
[Black "Lopez Perdomo, Juan David"]
[WhiteFideId "872555"]
[BlackFideId "4405137"]
[WhiteElo "2432"]
[BlackElo "2029"]
[Result "1-0"]
[Round "02"]
[TimeControl "180+2"]
[Date "2023.01.10"]
[WhiteClock "0:00:11"]
[BlackClock "0:00:26"]

1. c4 {[%clk 0:00:00]}  e6 {[%clk 0:00:00]} 2. d4 {[%clk 0:02:58]}  c5 {[%clk 0:02:59]} 3. d5 {[%clk 0:02:56]}  exd5 {[%clk 0:02:59]} 4. cxd5 {[%clk 0:02:47]}  d6 {[%clk 0:03:00]} 5. Nc3 {[%clk 0:02:48]}  Nf6 {[%clk 0:03:00]} 6. e4 {[%clk 0:02:46]}  g6 {[%clk 0:03:01]} 7. Nge2 {[%clk 0:02:44]}  Na6 {[%clk 0:03:02]} 8. Ng3 {[%clk 0:02:40]}  Nc7 {[%clk 0:03:00]} 9. Be2 {[%clk 0:02:38]}  Bg7 {[%clk 0:03:00]} 10. a4 {[%clk 0:02:38]}  b6 {[%clk 0:03:00]} 11. O-O {[%clk 0:02:37]}  O-O {[%clk 0:02:59]} 12. Be3 {[%clk 0:02:33]}  a6 {[%clk 0:02:59]} 13. f4 {[%clk 0:02:25]}  Re8 {[%clk 0:02:59]} 14. Qd2 {[%clk 0:02:21]}  Bd7 {[%clk 0:03:00]} 15. e5 {[%clk 0:02:11]}  dxe5 {[%clk 0:02:59]} 16. d6 {[%clk 0:01:57]}  Ne6 {[%clk 0:02:58]} 17. fxe5 {[%clk 0:01:46]}  Nh5 {[%clk 0:01:27]} 18. Bxh5 {[%clk 0:01:44]}  gxh5 {[%clk 0:01:23]} 19. Nxh5 {[%clk 0:01:34]}  Bxe5 {[%clk 0:01:21]} 20. Nd5 {[%clk 0:01:35]}  Qh4 {[%clk 0:01:21]} 21. Ndf6+ {[%clk 0:01:28]}  Kh8 {[%clk 0:01:14]} 22. g3 {[%clk 0:01:25]}  Qh3 {[%clk 0:01:11]} 23. Nxd7 {[%clk 0:01:25]}  Qxh5 {[%clk 0:00:56]} 24. Nxe5 {[%clk 0:00:51]}  Qxe5 {[%clk 0:00:46]} 25. Rxf7 {[%clk 0:00:42]}  Nd8 {[%clk 0:00:45]} 26. Rf3 {[%clk 0:00:43]}  Ra7 {[%clk 0:00:40]} 27. Raf1 {[%clk 0:00:23]}  Rg7 {[%clk 0:00:37]} 28. d7 {[%clk 0:00:20]}  Reg8 {[%clk 0:00:37]} 29. Bf4 {[%clk 0:00:16]}  Qe7 {[%clk 0:00:35]} 30. Re3 {[%clk 0:00:14]}  Qxd7 {[%clk 0:00:27]} 31. Qxd7 {[%clk 0:00:12]}  Rxd7 {[%clk 0:00:27]} 32. Be5+ {[%clk 0:00:10]}  Rgg7 {[%clk 0:00:26]} 33. Rf8# {[%clk 0:00:11]} 1-0


[Site "https://www.chess.com"]

[Event "Titled Tuesday Blitz January 10 Late 2023"]
[White "Tatarinov, Dmitry"]
[Black "Marin Masis, Jose Esteban"]
[WhiteFideId "24160067"]
[BlackFideId "6508146"]
[WhiteElo "2310"]
[BlackElo "1938"]
[Result "1-0"]
[Round "02"]
[TimeControl "180+2"]
[Date "2023.01.10"]
[WhiteClock "0:01:25"]
[BlackClock "0:00:13"]

1. d4 {[%clk 0:00:00]}  Nf6 {[%clk 0:00:00]} 2. Nf3 {[%clk 0:02:52]}  d5 {[%clk 0:02:59]} 3. c4 {[%clk 0:02:52]}  c6 {[%clk 0:02:59]} 4. Nc3 {[%clk 0:02:52]}  g6 {[%clk 0:02:59]} 5. h4 {[%clk 0:02:53]}  Bg7 {[%clk 0:02:57]} 6. h5 {[%clk 0:02:50]}  gxh5 {[%clk 0:02:56]} 7. Bf4 {[%clk 0:02:50]}  Bg4 {[%clk 0:02:56]} 8. Ne5 {[%clk 0:02:46]}  Nbd7 {[%clk 0:02:55]} 9. cxd5 {[%clk 0:02:43]}  cxd5 {[%clk 0:02:53]} 10. Qb3 {[%clk 0:02:42]}  Qb6 {[%clk 0:02:51]} 11. Nxd7 {[%clk 0:02:42]}  Bxd7 {[%clk 0:02:39]} 12. Qxb6 {[%clk 0:02:34]}  axb6 {[%clk 0:02:27]} 13. Be5 {[%clk 0:02:25]}  e6 {[%clk 0:02:28]} 14. e3 {[%clk 0:02:22]}  O-O {[%clk 0:01:57]} 15. Bd3 {[%clk 0:02:20]}  Ne4 {[%clk 0:01:55]} 16. Bxe4 {[%clk 0:02:17]}  dxe4 {[%clk 0:01:29]} 17. Bxg7 {[%clk 0:02:11]}  Kxg7 {[%clk 0:01:16]} 18. Rxh5 {[%clk 0:02:08]}  f5 {[%clk 0:01:15]} 19. g3 {[%clk 0:02:09]}  b5 {[%clk 0:01:11]} 20. Kd2 {[%clk 0:02:06]}  b4 {[%clk 0:01:02]} 21. Ne2 {[%clk 0:02:04]}  Rfc8 {[%clk 0:00:58]} 22. b3 {[%clk 0:02:04]}  Rc6 {[%clk 0:00:52]} 23. Rhh1 {[%clk 0:01:52]}  Rca6 {[%clk 0:00:41]} 24. Nc1 {[%clk 0:01:49]}  Bc6 {[%clk 0:00:33]} 25. Kc2 {[%clk 0:01:44]}  Bd5 {[%clk 0:00:30]} 26. Kb2 {[%clk 0:01:44]}  Rc8 {[%clk 0:00:30]} 27. Ne2 {[%clk 0:01:45]}  Rac6 {[%clk 0:00:29]} 28. Rac1 {[%clk 0:01:40]}  Ra8 {[%clk 0:00:29]} 29. Rxc6 {[%clk 0:01:39]}  bxc6 {[%clk 0:00:25]} 30. Nf4 {[%clk 0:01:35]}  Ra3 {[%clk 0:00:26]} 31. Rh5 {[%clk 0:01:35]}  Ra7 {[%clk 0:00:21]} 32. Rg5+ {[%clk 0:01:30]}  Kf6 {[%clk 0:00:17]} 33. Rg8 {[%clk 0:01:30]}  Kf7 {[%clk 0:00:15]} 34. Rb8 {[%clk 0:01:30]}  c5 {[%clk 0:00:15]} 35. dxc5 {[%clk 0:01:30]}  Rc7 {[%clk 0:00:10]} 36. Rxb4 {[%clk 0:01:30]}  Rxc5 {[%clk 0:00:10]} 37. a4 {[%clk 0:01:29]}  Ra5 {[%clk 0:00:11]} 38. Rb5 {[%clk 0:01:29]}  Rxb5 {[%clk 0:00:11]} 39. axb5 {[%clk 0:01:29]}  Bb7 {[%clk 0:00:09]} 40. Kc3 {[%clk 0:01:29]}  e5 {[%clk 0:00:10]} 41. Ne2 {[%clk 0:01:29]}  Kf6 {[%clk 0:00:09]} 42. Kc4 {[%clk 0:01:27]}  h5 {[%clk 0:00:10]} 43. Kc5 {[%clk 0:01:28]}  Kg5 {[%clk 0:00:10]} 44. Kd6 {[%clk 0:01:28]}  Kg4 {[%clk 0:00:11]} 45. Kxe5 {[%clk 0:01:27]}  Kf3 {[%clk 0:00:11]} 46. Nd4+ {[%clk 0:01:23]}  Kxf2 {[%clk 0:00:12]} 47. Nxf5 {[%clk 0:01:23]}  Kf3 {[%clk 0:00:12]} 48. b6 {[%clk 0:01:24]}  Kg4 {[%clk 0:00:11]} 49. b4 {[%clk 0:01:23]}  Kf3 {[%clk 0:00:11]} 50. b5 {[%clk 0:01:23]}  Kg4 {[%clk 0:00:12]} 51. Nd6 {[%clk 0:01:23]}  Kxg3 {[%clk 0:00:12]} 52. Nxb7 {[%clk 0:01:24]}  h4 {[%clk 0:00:12]} 53. Nc5 {[%clk 0:01:24]}  h3 {[%clk 0:00:12]} 54. Nxe4+ {[%clk 0:01:25]}  Kg2 {[%clk 0:00:13]} 55. Kf4 {[%clk 0:01:25]}  h2 {[%clk 0:00:13]} 56. Ng3 {[%clk 0:01:25]} 1-0


[Site "https://www.chess.com"]

[Event "Titled Tuesday Blitz January 10 Late 2023"]
[White "Jimenez Almeida, Luis David"]
[Black "Kamsky, Gata"]
[WhiteFideId "22242244"]
[BlackFideId "2000024"]
[WhiteElo "2242"]
[BlackElo "2665"]
[Result "0-1"]
[Round "02"]
[TimeControl "180+2"]
[Date "2023.01.10"]
[WhiteClock "0:00:07"]
[BlackClock "0:00:12"]

1. e4 {[%clk 0:00:00]}  e5 {[%clk 0:00:00]} 2. Nf3 {[%clk 0:03:00]}  Nc6 {[%clk 0:02:48]} 3. Bb5 {[%clk 0:03:00]}  a6 {[%clk 0:02:46]} 4. Ba4 {[%clk 0:02:59]}  Nf6 {[%clk 0:02:41]} 5. O-O {[%clk 0:02:56]}  Be7 {[%clk 0:02:40]} 6. d3 {[%clk 0:02:56]}  d6 {[%clk 0:02:38]} 7. c3 {[%clk 0:02:55]}  O-O {[%clk 0:02:36]} 8. Re1 {[%clk 0:02:54]}  b5 {[%clk 0:02:36]} 9. Bc2 {[%clk 0:02:54]}  Nb8 {[%clk 0:02:25]} 10. Nbd2 {[%clk 0:02:53]}  c5 {[%clk 0:02:22]} 11. Nf1 {[%clk 0:02:52]}  Nc6 {[%clk 0:02:21]} 12. d4 {[%clk 0:02:52]}  cxd4 {[%clk 0:02:21]} 13. cxd4 {[%clk 0:02:52]}  exd4 {[%clk 0:02:19]} 14. Nxd4 {[%clk 0:02:53]}  Nxd4 {[%clk 0:02:11]} 15. Qxd4 {[%clk 0:02:53]}  Be6 {[%clk 0:02:11]} 16. Bf4 {[%clk 0:02:53]}  Qc7 {[%clk 0:02:00]} 17. Rac1 {[%clk 0:02:35]}  Qc5 {[%clk 0:01:42]} 18. Qd2 {[%clk 0:02:27]}  Qb6 {[%clk 0:01:36]} 19. Be3 {[%clk 0:02:24]}  Qb7 {[%clk 0:01:29]} 20. Bd4 {[%clk 0:02:12]}  Rfe8 {[%clk 0:01:21]} 21. Ng3 {[%clk 0:02:00]}  Rac8 {[%clk 0:01:19]} 22. Bb3 {[%clk 0:01:55]}  Rxc1 {[%clk 0:01:10]} 23. Qxc1 {[%clk 0:01:51]}  Bxb3 {[%clk 0:01:01]} 24. axb3 {[%clk 0:01:49]}  g6 {[%clk 0:00:54]} 25. h3 {[%clk 0:01:49]}  Nd7 {[%clk 0:00:28]} 26. Qh6 {[%clk 0:01:46]}  Bf8 {[%clk 0:00:23]} 27. Qf4 {[%clk 0:01:32]}  Ne5 {[%clk 0:00:22]} 28. Rd1 {[%clk 0:01:31]}  Qe7 {[%clk 0:00:21]} 29. Qd2 {[%clk 0:01:27]}  Qe6 {[%clk 0:00:20]} 30. f4 {[%clk 0:01:24]}  Nc6 {[%clk 0:00:20]} 31. Be3 {[%clk 0:01:19]}  Qxb3 {[%clk 0:00:19]} 32. f5 {[%clk 0:00:41]}  Ne5 {[%clk 0:00:19]} 33. Bf4 {[%clk 0:00:41]}  Nc4 {[%clk 0:00:17]} 34. Qd5 {[%clk 0:00:32]}  Qxb2 {[%clk 0:00:17]} 35. fxg6 {[%clk 0:00:27]}  hxg6 {[%clk 0:00:16]} 36. Kh2 {[%clk 0:00:23]}  Qf6 {[%clk 0:00:16]} 37. Qc6 {[%clk 0:00:20]}  Qe6 {[%clk 0:00:15]} 38. Qxa6 {[%clk 0:00:20]}  Rb8 {[%clk 0:00:15]} 39. Rd5 {[%clk 0:00:19]}  Qe8 {[%clk 0:00:14]} 40. Qa7 {[%clk 0:00:16]}  Ne5 {[%clk 0:00:13]} 41. Bxe5 {[%clk 0:00:13]}  dxe5 {[%clk 0:00:12]} 42. Rd7 {[%clk 0:00:09]}  b4 {[%clk 0:00:12]} 43. Rb7 {[%clk 0:00:07]}  Rxb7 {[%clk 0:00:12]} 44. Qxb7 {[%clk 0:00:07]}  Qe6 {[%clk 0:00:12]} 45. h4 {[%clk 0:00:08]}  Qf6 {[%clk 0:00:12]} 46. h5 {[%clk 0:00:07]}  Qh4+ {[%clk 0:00:12]} 47. Kg1 {[%clk 0:00:07]}  Qxg3 {[%clk 0:00:12]} 48. hxg6 {[%clk 0:00:07]}  Qxg6 {[%clk 0:00:13]} 49. Qd5 {[%clk 0:00:07]}  Qe6 {[%clk 0:00:12]} 50. Qd3 {[%clk 0:00:07]}  b3 {[%clk 0:00:12]} 51. Qc3 {[%clk 0:00:07]}  Bh6 {[%clk 0:00:13]} 52. Qg3+ {[%clk 0:00:07]}  Kh7 {[%clk 0:00:12]} 53. Qf3 {[%clk 0:00:05]}  Kg6 {[%clk 0:00:12]} 54. Qg3+ {[%clk 0:00:05]}  Bg5 {[%clk 0:00:12]} 55. Qf3 {[%clk 0:00:05]}  b2 {[%clk 0:00:12]} 56. Kh2 {[%clk 0:00:05]}  b1=Q {[%clk 0:00:11]} 57. Qf5+ {[%clk 0:00:04]}  Qxf5 {[%clk 0:00:11]} 58. exf5+ {[%clk 0:00:04]}  Qxf5 {[%clk 0:00:11]} 59. g4 {[%clk 0:00:05]}  Qxg4 {[%clk 0:00:11]} 60. Kh1 {[%clk 0:00:05]}  e4 {[%clk 0:00:11]} 61. Kh2 {[%clk 0:00:06]}  e3 {[%clk 0:00:11]} 62. Kh1 {[%clk 0:00:06]}  e2 {[%clk 0:00:12]} 63. Kh2 {[%clk 0:00:07]}  Bf4+ {[%clk 0:00:12]} 64. Kh1 {[%clk 0:00:07]}  e1=R# {[%clk 0:00:12]} 0-1


[Site "https://www.chess.com"]

[Event "Titled Tuesday Blitz January 10 Late 2023"]
[White "Holt, Conrad"]
[Black "Malka, Samuel"]
[WhiteFideId "2034387"]
[BlackFideId "20643675"]
[WhiteElo "2540"]
[BlackElo "2165"]
[Result "1-0"]
[Round "02"]
[TimeControl "180+2"]
[Date "2023.01.10"]
[WhiteClock "0:01:44"]
[BlackClock "0:00:47"]

1. d4 {[%clk 0:00:00]}  Nf6 {[%clk 0:00:00]} 2. c4 {[%clk 0:02:54]}  g6 {[%clk 0:02:57]} 3. Nc3 {[%clk 0:02:52]}  Bg7 {[%clk 0:02:57]} 4. e4 {[%clk 0:02:53]}  d6 {[%clk 0:02:58]} 5. Nf3 {[%clk 0:02:53]}  O-O {[%clk 0:02:58]} 6. h3 {[%clk 0:02:54]}  e5 {[%clk 0:02:59]} 7. dxe5 {[%clk 0:02:54]}  dxe5 {[%clk 0:02:58]} 8. Qxd8 {[%clk 0:02:55]}  Rxd8 {[%clk 0:02:58]} 9. Bg5 {[%clk 0:02:55]}  Re8 {[%clk 0:02:59]} 10. Nd5 {[%clk 0:02:55]}  Nxd5 {[%clk 0:02:56]} 11. cxd5 {[%clk 0:02:55]}  c6 {[%clk 0:02:56]} 12. Bc4 {[%clk 0:02:56]}  b5 {[%clk 0:02:55]} 13. Bb3 {[%clk 0:02:57]}  a5 {[%clk 0:02:51]} 14. a4 {[%clk 0:02:57]}  bxa4 {[%clk 0:02:49]} 15. Bxa4 {[%clk 0:02:44]}  Bd7 {[%clk 0:02:47]} 16. d6 {[%clk 0:02:43]}  Re6 {[%clk 0:02:47]} 17. Bb3 {[%clk 0:02:31]}  Rxd6 {[%clk 0:02:33]} 18. Be7 {[%clk 0:02:24]}  Rd3 {[%clk 0:02:27]} 19. Bc4 {[%clk 0:02:23]}  Rxf3 {[%clk 0:01:47]} 20. gxf3 {[%clk 0:02:23]}  Bf8 {[%clk 0:01:44]} 21. Bxf8 {[%clk 0:02:23]}  Kxf8 {[%clk 0:01:42]} 22. b4 {[%clk 0:02:22]}  a4 {[%clk 0:01:43]} 23. Kd2 {[%clk 0:02:17]}  Ke7 {[%clk 0:01:37]} 24. Kc3 {[%clk 0:02:16]}  Be6 {[%clk 0:01:34]} 25. Rhc1 {[%clk 0:02:12]}  Nd7 {[%clk 0:01:34]} 26. Bxe6 {[%clk 0:01:57]}  Kxe6 {[%clk 0:01:30]} 27. Kb2 {[%clk 0:01:57]}  Ra6 {[%clk 0:01:31]} 28. Ka3 {[%clk 0:01:56]}  Kd6 {[%clk 0:01:18]} 29. Rc4 {[%clk 0:01:54]}  Nf8 {[%clk 0:01:15]} 30. Rd1+ {[%clk 0:01:51]}  Ke7 {[%clk 0:01:03]} 31. Rc5 {[%clk 0:01:45]}  f6 {[%clk 0:01:03]} 32. Ra5 {[%clk 0:01:44]}  Rb6 {[%clk 0:00:59]} 33. Ra7+ {[%clk 0:01:44]}  Ke6 {[%clk 0:00:47]} 34. Rd8 {[%clk 0:01:44]} 1-0


[Site "https://www.chess.com"]

[Event "Titled Tuesday Blitz January 10 Late 2023"]
[White "Gatterer, Florian"]
[Black "Tristan, Leonardo"]
[WhiteFideId "811688"]
[BlackFideId "113816"]
[WhiteElo "2170"]
[BlackElo "2545"]
[Result "0-1"]
[Round "02"]
[TimeControl "180+2"]
[Date "2023.01.10"]
[WhiteClock "0:00:07"]
[BlackClock "0:00:05"]

1. Nf3 {[%clk 0:00:00]}  d5 {[%clk 0:00:00]} 2. e3 {[%clk 0:03:00]}  Nf6 {[%clk 0:02:58]} 3. c4 {[%clk 0:03:00]}  e6 {[%clk 0:02:58]} 4. Nc3 {[%clk 0:02:59]}  b6 {[%clk 0:02:58]} 5. cxd5 {[%clk 0:03:00]}  exd5 {[%clk 0:02:57]} 6. d4 {[%clk 0:02:58]}  Bd6 {[%clk 0:02:57]} 7. Bd3 {[%clk 0:02:57]}  O-O {[%clk 0:02:55]} 8. O-O {[%clk 0:02:55]}  Re8 {[%clk 0:02:55]} 9. Nb5 {[%clk 0:02:54]}  Bf8 {[%clk 0:02:52]} 10. b3 {[%clk 0:02:51]}  Ba6 {[%clk 0:02:51]} 11. Bb2 {[%clk 0:02:50]}  c6 {[%clk 0:02:38]} 12. Nc3 {[%clk 0:02:45]}  Bxd3 {[%clk 0:02:37]} 13. Qxd3 {[%clk 0:02:44]}  Nbd7 {[%clk 0:02:37]} 14. Rfd1 {[%clk 0:02:45]}  Bd6 {[%clk 0:02:27]} 15. g3 {[%clk 0:02:42]}  a5 {[%clk 0:02:27]} 16. Rac1 {[%clk 0:02:40]}  Ne4 {[%clk 0:02:24]} 17. Qe2 {[%clk 0:02:36]}  Qe7 {[%clk 0:02:18]} 18. Nxe4 {[%clk 0:02:36]}  dxe4 {[%clk 0:01:58]} 19. Nd2 {[%clk 0:02:31]}  Rec8 {[%clk 0:01:58]} 20. Qg4 {[%clk 0:02:28]}  Nf6 {[%clk 0:01:21]} 21. Qf5 {[%clk 0:02:09]}  b5 {[%clk 0:01:19]} 22. d5 {[%clk 0:02:09]}  Nxd5 {[%clk 0:00:56]} 23. Nxe4 {[%clk 0:02:03]}  g6 {[%clk 0:00:41]} 24. Qf3 {[%clk 0:01:54]}  Be5 {[%clk 0:00:41]} 25. Bxe5 {[%clk 0:01:53]}  Qxe5 {[%clk 0:00:38]} 26. Nc5 {[%clk 0:01:42]}  Kg7 {[%clk 0:00:39]} 27. h4 {[%clk 0:01:12]}  b4 {[%clk 0:00:29]} 28. Nd3 {[%clk 0:01:12]}  Qf6 {[%clk 0:00:20]} 29. Qxf6+ {[%clk 0:01:00]}  Kxf6 {[%clk 0:00:20]} 30. Nf4 {[%clk 0:00:54]}  Nc3 {[%clk 0:00:20]} 31. Rd2 {[%clk 0:00:49]}  Rd8 {[%clk 0:00:20]} 32. Rcc2 {[%clk 0:00:47]}  Ke5 {[%clk 0:00:19]} 33. Kf1 {[%clk 0:00:48]}  h6 {[%clk 0:00:16]} 34. Ne2 {[%clk 0:00:42]}  g5 {[%clk 0:00:11]} 35. hxg5 {[%clk 0:00:42]}  hxg5 {[%clk 0:00:11]} 36. Nxc3 {[%clk 0:00:41]}  Rxd2 {[%clk 0:00:12]} 37. Rxd2 {[%clk 0:00:40]}  bxc3 {[%clk 0:00:09]} 38. Rc2 {[%clk 0:00:39]}  a4 {[%clk 0:00:10]} 39. Rxc3 {[%clk 0:00:39]}  Kd5 {[%clk 0:00:10]} 40. bxa4 {[%clk 0:00:37]}  Rxa4 {[%clk 0:00:11]} 41. a3 {[%clk 0:00:26]}  g4 {[%clk 0:00:10]} 42. Ke2 {[%clk 0:00:27]}  f5 {[%clk 0:00:10]} 43. Kd3 {[%clk 0:00:27]}  c5 {[%clk 0:00:10]} 44. Kd2 {[%clk 0:00:27]}  c4 {[%clk 0:00:11]} 45. Ke2 {[%clk 0:00:25]}  Ke4 {[%clk 0:00:11]} 46. Rc2 {[%clk 0:00:21]}  Kd5 {[%clk 0:00:12]} 47. Rc3 {[%clk 0:00:19]}  Kc5 {[%clk 0:00:10]} 48. Kd2 {[%clk 0:00:19]}  Ra6 {[%clk 0:00:10]} 49. Ke2 {[%clk 0:00:18]}  Rb6 {[%clk 0:00:09]} 50. Kd2 {[%clk 0:00:19]}  Rb2+ {[%clk 0:00:08]} 51. Rc2 {[%clk 0:00:19]}  Rb3 {[%clk 0:00:08]} 52. Rc3 {[%clk 0:00:19]}  Rb1 {[%clk 0:00:08]} 53. Rc1 {[%clk 0:00:20]}  Rb7 {[%clk 0:00:09]} 54. Rc3 {[%clk 0:00:19]}  Kb5 {[%clk 0:00:08]} 55. Kc2 {[%clk 0:00:19]}  Rh7 {[%clk 0:00:08]} 56. Kb2 {[%clk 0:00:19]}  Rh2 {[%clk 0:00:08]} 57. Rc2 {[%clk 0:00:18]}  Kc5 {[%clk 0:00:08]} 58. Kc3 {[%clk 0:00:18]}  Rh1 {[%clk 0:00:09]} 59. Kd2 {[%clk 0:00:19]}  Ra1 {[%clk 0:00:08]} 60. Rc3 {[%clk 0:00:17]}  Kd5 {[%clk 0:00:08]} 61. Ke2 {[%clk 0:00:16]}  Ra2+ {[%clk 0:00:09]} 62. Kf1 {[%clk 0:00:15]}  Rb2 {[%clk 0:00:09]} 63. Ke1 {[%clk 0:00:15]}  Kc5 {[%clk 0:00:10]} 64. Rc1 {[%clk 0:00:11]}  Kb5 {[%clk 0:00:10]} 65. Rc3 {[%clk 0:00:08]}  Rb3 {[%clk 0:00:08]} 66. Rxb3+ {[%clk 0:00:07]}  cxb3 {[%clk 0:00:05]} 67. Kd2 {[%clk 0:00:07]}  Ka4 {[%clk 0:00:06]} 68. Kc1 {[%clk 0:00:07]}  Kxa3 {[%clk 0:00:07]} 69. Kb1 {[%clk 0:00:07]}  b2 {[%clk 0:00:07]} 70. f4 {[%clk 0:00:07]}  gxf3 {[%clk 0:00:06]} 71. e4 {[%clk 0:00:06]}  f2 {[%clk 0:00:05]} 72. g4 {[%clk 0:00:06]}  f1=Q+ {[%clk 0:00:04]} 73. Kc2 {[%clk 0:00:06]}  b1=Q+ {[%clk 0:00:04]} 74. Kc3 {[%clk 0:00:07]}  Qfd3# {[%clk 0:00:05]} 0-1


[Site "https://www.chess.com"]